fUSD/lending_fUSD_20240426
["ID","MTS","AMOUNT","RATE_DAILY","PERIOD"]
[323585719,1714097446932,-505.3375091,0.00010958,2]
[323585720,1714097446941,-884.83,0.00010958,2]
[323585721,1714097446952,-510.71,0.00010958,2]
[323585722,1714097446963,-500.0,0.00010958,2]
[323585723,1714097446974,-150.73398182,0.00010958,2]
[323585724,1714097446983,-500.0,0.00010958,2]
[323585725,1714097446992,-510.46515923,0.00010958,2]
[323585726,1714097447001,-545.60825132,0.00010958,2]
[323585727,1714097447011,-500.0,0.00010958,2]
[323585728,1714097447020,-542.32,0.00010958,2]
[323585729,1714097447030,-500.0,0.00010958,2]
[323585730,1714097447038,-499.99,0.00010959,2]
[323585731,1714097447048,-150.0,0.00010959,2]
[323585732,1714097447057,-16536.46,0.00010959,2]
[323585733,1714097447066,-2000.0,0.00010959,3]
[323585734,1714097447075,-10000.0,0.00010959,2]
[323585735,1714097447085,-1916.3,0.0001096,2]
[323585736,1714097447094,-1916.3,0.0001096,2]
[323585737,1714097447103,-150.0,0.00010967,2]
[323585738,1714097447112,-1301.81,0.00010999,2]
[323585739,1714097447122,-313.18035922,0.00011,2]
[323585740,1714097447132,-200.0,0.00011,2]
[323585741,1714097447141,-30000.0,0.00011,2]
[323585742,1714097447150,-413.76,0.00011,2]
[323585743,1714097447159,-910.54,0.00011,2]
[323585744,1714097447168,-423.14,0.00011,2]
[323585745,1714097447178,-301.41,0.00011,2]
[323585746,1714097447186,-155.0,0.00011,2]
[323585747,1714097447195,-310.79267917,0.00011,2]
[323585748,1714097447204,-150.0,0.00011045,2]
[323585749,1714097447214,-150.0,0.00011049,2]
[323585750,1714097447223,-164.50524724,0.00011064,2]
[323585751,1714097447232,-150.0,0.00011122,2]
[323585752,1714097447241,-168.97110828,0.00011132,2]
[323585753,1714097447251,-173.71415482,0.00011132,2]
[323585754,1714097447260,-5104.50676267,0.00011132,2]
[323585755,1714097447269,-169.13566732,0.00011132,2]
[323585756,1714097447278,-276.366,0.00011132,2]
[323585757,1714097447288,-2656.7433,0.00011132,2]
[323585758,1714097447297,-150.0,0.00011151,2]
[323585759,1714097447306,-1684.0,0.000112,2]
[323585760,1714097447315,-500.0,0.0001123,2]
[323585761,1714097447324,-536.61311131,0.00011231,2]
[323585762,1714097447333,-500.0,0.00011231,2]
[323585763,1714097447343,-5160.82,0.00011231,2]
[323585764,1714097447352,-500.0,0.00011231,2]
[323585765,1714097447362,-500.0,0.00011231,2]
[323585766,1714097447371,-2591.1,0.00011231,2]
[323585767,1714097447381,-614.68,0.00011231,2]
[323585768,1714097447391,-500.0,0.00011231,2]
[323585769,1714097447401,-500.0,0.00011231,2]
[323585770,1714097447410,-1067.79,0.00011231,2]
[323585771,1714097447420,-718.23,0.00011231,2]
[323585772,1714097447429,-1041.2,0.00011231,2]
[323585773,1714097447438,-500.0,0.00011231,2]
[323585774,1714097447447,-1489.91,0.00011231,2]
[323585775,1714097447457,-221.59474408,0.00011231,2]
[323585776,1714097447466,-833.69,0.00011231,2]
[323585777,1714097447475,-1303.19,0.00011231,2]
[323585778,1714097447485,-2892.99,0.00011231,2]
[323585779,1714097447495,-1755.88,0.00011231,2]
[323585780,1714097447505,-500.0,0.00011231,2]
[323585781,1714097447515,-702.49,0.00011231,2]
[323585782,1714097447525,-2555.28,0.00011231,2]
[323585783,1714097447535,-1195.57,0.00011231,2]
[323585784,1714097447544,-834.4,0.00011231,2]
[323585785,1714097447554,-523.76,0.00011231,2]
[323585786,1714097447565,-561.06,0.00011231,2]
[323585787,1714097447575,-500.0,0.00011232,2]
[323585788,1714097447585,-500.0,0.00011232,2]
[323585789,1714097447596,-500.0,0.00011232,2]
[323585790,1714097447605,-806.44,0.00011232,2]
[323585791,1714097447617,-500.0,0.00011232,2]
[323585792,1714097447627,-514.01,0.00011232,2]
[323585793,1714097447640,-360.17,0.00011232,2]
[323585794,1714097447651,-500.0,0.00011232,2]
[323585795,1714097447662,-674.35,0.00011232,2]
[323585796,1714097447673,-500.0,0.00011232,2]
[323585797,1714097447687,-378.44571671,0.00011232,2]
[323585798,1714097447698,-500.0,0.00011232,2]
[323585799,1714097447708,-500.0,0.00011232,2]
[323585800,1714097447718,-500.0,0.00011232,2]
[323585801,1714097447729,-500.0,0.00011232,2]
[323585802,1714097447738,-500.0,0.00011232,2]
[323585803,1714097447750,-775.16,0.00011232,2]
[323585804,1714097447761,-500.0,0.00011232,2]
[323585805,1714097447771,-500.0,0.00011232,2]
[323585806,1714097447780,-500.0,0.00011232,2]
[323585807,1714097447789,-500.0,0.00011232,2]
[323585808,1714097447798,-500.0,0.00011232,2]
[323585809,1714097447808,-500.0,0.00011232,2]
[323585810,1714097447817,-500.0,0.00011232,2]
[323585811,1714097447825,-500.0,0.00011232,2]
[323585812,1714097447834,-500.0,0.00011232,2]
[323585813,1714097447844,-500.0,0.00011232,2]
[323585814,1714097447854,-500.0,0.00011232,2]
[323585815,1714097447863,-500.0,0.00011232,2]
[323585816,1714097447872,-500.0,0.00011232,2]
[323585817,1714097447883,-500.0,0.00011232,2]
[323585818,1714097447892,-500.0,0.00011232,2]
[323585819,1714097447901,-500.0,0.00011232,2]
[323585820,1714097447910,-500.0,0.00011232,2]
[323585821,1714097447920,-500.0,0.00011232,2]
[323585822,1714097447930,-500.0,0.00011232,2]
[323585823,1714097447939,-500.0,0.00011232,2]
[323585824,1714097447949,-500.0,0.00011232,2]
[323585825,1714097447958,-500.0,0.00011232,2]
[323585826,1714097447967,-261.76206165,0.00011232,2]
[323585827,1714097447977,-343.50260442,0.00011232,2]
[323585828,1714097447987,-655.57,0.00011232,2]
[323585829,1714097447996,-507.62744688,0.00011232,2]
[323585830,1714097448006,-500.0,0.00011232,2]
[323585831,1714097448016,-500.0,0.00011232,2]
[323585832,1714097448027,-500.0,0.00011232,2]
[323585833,1714097448038,-500.0,0.00011232,2]
[323585834,1714097448048,-500.0,0.00011232,2]
[323585835,1714097448057,-500.0,0.00011232,2]
[323585836,1714097448067,-500.0,0.00011232,2]
[323585837,1714097448078,-500.0,0.00011232,2]
[323585838,1714097448089,-500.0,0.00011232,2]
[323585839,1714097448099,-500.0,0.00011232,2]
[323585840,1714097448110,-500.0,0.00011232,2]
[323585841,1714097448119,-500.0,0.00011232,2]
[323585842,1714097448129,-379.63089513,0.00011232,2]
[323585843,1714097448139,-215.58876111,0.00011232,2]
[323585844,1714097448149,-500.0,0.00011232,2]
[323585845,1714097448158,-500.0,0.00011232,2]
[323585846,1714097448168,-500.0,0.00011232,2]
[323585847,1714097448179,-500.0,0.00011232,2]
[323585848,1714097448189,-500.0,0.00011232,2]
[323585849,1714097448200,-809.64,0.00011232,2]
[323585850,1714097448210,-500.0,0.00011232,2]
[323585851,1714097448221,-500.0,0.00011232,2]
[323585852,1714097448233,-500.0,0.00011232,2]
[323585853,1714097448243,-500.0,0.00011232,2]
[323585854,1714097448254,-699.96,0.00011232,2]
[323585855,1714097448264,-500.0,0.00011232,2]
[323585856,1714097448274,-500.0,0.00011232,2]
[323585857,1714097448283,-500.0,0.00011232,2]
[323585858,1714097448294,-500.0,0.00011232,2]
[323585859,1714097448303,-500.0,0.00011232,2]
[323585860,1714097448312,-500.0,0.00011232,2]
[323585861,1714097448321,-500.0,0.00011232,2]
[323585862,1714097448331,-500.0,0.00011232,2]
[323585863,1714097448340,-500.0,0.00011232,2]
[323585864,1714097448350,-884.52,0.00011232,2]
[323585865,1714097448359,-500.0,0.00011232,2]
[323585866,1714097448368,-500.0,0.00011232,2]
[323585867,1714097448377,-537.41,0.00011232,2]
[323585868,1714097448388,-500.0,0.00011232,2]
[323585869,1714097448397,-500.0,0.00011232,2]
[323585870,1714097448407,-870.61,0.00011232,2]
[323585871,1714097448417,-608.81282647,0.00011232,2]
[323585872,1714097448427,-500.0,0.00011232,2]
[323585873,1714097448436,-500.0,0.00011232,2]
[323585874,1714097448447,-500.0,0.00011232,2]
[323585875,1714097448457,-824.93,0.00011232,2]
[323585876,1714097448467,-593.42,0.00011232,2]
[323585877,1714097448477,-500.0,0.00011232,2]
[323585878,1714097448487,-500.0,0.00011232,2]
[323585879,1714097448496,-500.0,0.00011232,2]
[323585880,1714097448507,-500.0,0.00011232,2]
[323585881,1714097448517,-500.0,0.00011232,2]
[323585882,1714097448527,-500.0,0.00011232,2]
[323585883,1714097448536,-652.14,0.00011232,2]
[323585884,1714097448545,-500.0,0.00011232,2]
[323585885,1714097448556,-500.0,0.00011232,2]
[323585886,1714097448565,-654.33,0.00011232,2]
[323585887,1714097448575,-500.0,0.00011232,2]
[323585888,1714097448586,-8513.88892551,0.00011232,2]
[323585889,1714097448595,-500.0,0.00011232,2]
[323585890,1714097448605,-323.66722163,0.00011232,2]
[323585891,1714097448615,-500.0,0.00011232,2]
[323585892,1714097448626,-500.0,0.00011232,2]
[323585893,1714097448637,-500.0,0.00011232,2]
[323585894,1714097448647,-588.96,0.00011232,2]
[323585895,1714097448657,-500.0,0.00011232,2]
[323585896,1714097448667,-617.47,0.00011232,2]
[323585897,1714097448676,-500.0,0.00011232,2]
[323585898,1714097448687,-500.0,0.00011232,2]
[323585899,1714097448697,-500.0,0.00011232,2]
[323585900,1714097448706,-504.54847586,0.00011232,2]
[323585901,1714097448715,-500.0,0.00011232,2]
[323585902,1714097448725,-500.0,0.00011232,2]
[323585903,1714097448735,-500.0,0.00011232,2]
[323585904,1714097448744,-769.92,0.00011232,2]
[323585905,1714097448754,-500.0,0.00011232,2]
[323585906,1714097448765,-503.65524777,0.00011232,2]
[323585907,1714097448774,-500.0,0.00011232,2]
[323585908,1714097448783,-527.66567375,0.00011232,2]
[323585909,1714097448793,-500.0,0.00011232,2]
[323585910,1714097448804,-505.54577872,0.00011232,2]
[323585911,1714097448814,-500.0,0.00011232,2]
[323585912,1714097448823,-500.0,0.00011232,2]
[323585913,1714097448833,-500.0,0.00011232,2]
[323585914,1714097448842,-539.08,0.00011232,2]
[323585915,1714097448853,-500.0,0.00011232,2]
[323585916,1714097448862,-500.0,0.00011232,2]
[323585917,1714097448872,-500.0,0.00011232,2]
[323585918,1714097448882,-500.0,0.00011232,2]
[323585919,1714097448892,-500.0,0.00011232,2]
[323585920,1714097448902,-500.0,0.00011232,2]
[323585921,1714097448912,-500.0,0.00011232,2]
[323585922,1714097448922,-823.12,0.00011232,2]
[323585923,1714097448932,-826.98,0.00011232,2]
[323585924,1714097448943,-500.0,0.00011232,2]
[323585925,1714097448954,-998.35,0.00011232,2]
[323585926,1714097448964,-500.0,0.00011232,2]
[323585927,1714097448976,-500.0,0.00011232,2]
[323585928,1714097448987,-500.0,0.00011232,2]
[323585929,1714097448998,-500.0,0.00011232,2]
[323585930,1714097449007,-500.0,0.00011232,2]
[323585931,1714097449018,-506.30191452,0.00011232,2]
[323585932,1714097449029,-641.98,0.00011232,2]
[323585933,1714097449040,-326.62739457,0.00011232,2]
[323585934,1714097449050,-500.0,0.00011232,2]
[323585935,1714097449059,-500.0,0.00011232,2]
[323585936,1714097449069,-500.0,0.00011232,2]
[323585937,1714097449078,-500.0,0.00011232,2]
[323585938,1714097449088,-504.80503511,0.00011232,2]
[323585939,1714097449099,-500.0,0.00011232,2]
[323585940,1714097449109,-500.0,0.00011232,2]
[323585941,1714097449120,-500.0,0.00011232,2]
[323585942,1714097449130,-500.0,0.00011232,2]
[323585943,1714097449143,-500.0,0.00011232,2]
[323585944,1714097449155,-500.0,0.00011232,2]
[323585945,1714097449166,-500.0,0.00011232,2]
[323585946,1714097449176,-500.0,0.00011232,2]
[323585947,1714097449185,-500.0,0.00011232,2]
[323585948,1714097449195,-500.0,0.00011232,2]
[323585949,1714097449204,-525.99,0.00011232,2]
[323585950,1714097449214,-513.88290293,0.00011232,2]
[323585951,1714097449224,-264.08417413,0.00011232,2]
[323585952,1714097449234,-500.0,0.00011232,2]
[323585953,1714097449244,-500.0,0.00011232,2]
[323585954,1714097449254,-500.0,0.00011232,2]
[323585955,1714097449264,-500.0,0.00011232,2]
[323585956,1714097449273,-500.0,0.00011232,2]
[323585957,1714097449283,-500.0,0.00011232,2]
[323585958,1714097449293,-500.0,0.00011232,2]
[323585959,1714097449303,-500.0,0.00011232,2]
[323585960,1714097449313,-500.0,0.00011232,2]
[323585961,1714097449323,-500.0,0.00011232,2]
[323585962,1714097449333,-500.0,0.00011232,2]
[323585963,1714097449343,-521.79041082,0.00011232,2]
[323585964,1714097449354,-500.0,0.00011232,2]
[323585965,1714097449365,-602.49,0.00011232,2]
[323585966,1714097449376,-500.0,0.00011232,2]
[323585967,1714097449388,-500.0,0.00011232,2]
[323585968,1714097449401,-500.0,0.00011232,2]
[323585969,1714097449411,-500.0,0.00011232,2]
[323585970,1714097449422,-543.63944611,0.00011232,2]
[323585971,1714097449432,-507.11669426,0.00011232,2]
[323585972,1714097449443,-814.62,0.00011232,2]
[323585973,1714097449455,-500.0,0.00011232,2]
[323585974,1714097449465,-500.0,0.00011232,2]
[323585975,1714097449476,-500.0,0.00011232,2]
[323585976,1714097449488,-500.0,0.00011232,2]
[323585977,1714097449498,-500.0,0.00011232,2]
[323585978,1714097449509,-290.0634399,0.00011232,2]
[323585979,1714097449518,-500.0,0.00011232,2]
[323585980,1714097449528,-500.0,0.00011232,2]
[323585981,1714097449538,-500.0,0.00011232,2]
[323585982,1714097449548,-500.0,0.00011232,2]
[323585983,1714097449558,-500.0,0.00011232,2]
[323585984,1714097449568,-945.24,0.00011232,2]
[323585985,1714097449579,-1003.47,0.00011232,2]
[323585986,1714097449590,-500.0,0.00011232,2]
[323585987,1714097449600,-500.0,0.00011232,2]
[323585988,1714097449610,-500.0,0.00011232,2]
[323585989,1714097449621,-500.0,0.00011232,2]
[323585990,1714097449633,-500.0,0.00011232,2]
[323585991,1714097449645,-500.0,0.00011232,2]
[323585992,1714097449656,-899.78,0.00011232,2]
[323585993,1714097449667,-500.0,0.00011232,2]
[323585994,1714097449678,-500.0,0.00011232,2]
[323585995,1714097449897,-500.0,0.00011232,2]
[323585996,1714097449907,-452.26352303,0.00011232,2]
[323585997,1714097449917,-660.92,0.00011232,2]
[323585998,1714097449926,-500.0,0.00011232,2]
[323585999,1714097449936,-500.0,0.00011232,2]
[323586000,1714097449948,-500.0,0.00011232,2]
[323586001,1714097449958,-500.0,0.00011232,2]
[323586002,1714097449970,-652.66,0.00011232,2]
[323586003,1714097449980,-500.0,0.00011232,2]
[323586004,1714097449991,-500.0,0.00011232,2]
[323586005,1714097450004,-500.0,0.00011232,2]
[323586006,1714097450014,-500.0,0.00011232,2]
[323586007,1714097450024,-500.0,0.00011232,2]
[323586008,1714097450035,-500.0,0.00011232,2]
[323586009,1714097450047,-516.53726461,0.00011232,2]
[323586010,1714097450057,-500.0,0.00011232,2]
[323586011,1714097450068,-500.0,0.00011232,2]
[323586012,1714097450079,-500.0,0.00011232,2]
[323586013,1714097450091,-500.0,0.00011232,2]
[323586014,1714097450102,-500.43,0.00011232,2]
[323586015,1714097450113,-500.0,0.00011232,2]
[323586016,1714097450124,-500.0,0.00011232,2]
[323586017,1714097450135,-500.0,0.00011232,2]
[323586018,1714097450146,-338.00790797,0.00011232,2]
[323586019,1714097450155,-500.0,0.00011232,2]
[323586020,1714097450165,-500.0,0.00011232,2]
[323586021,1714097450175,-507.18035068,0.00011232,2]
[323586022,1714097450185,-504.72948649,0.00011232,2]
[323586023,1714097450195,-500.0,0.00011232,2]
[323586024,1714097450205,-500.0,0.00011232,2]
[323586025,1714097450214,-624.03,0.00011232,2]
[323586026,1714097450224,-500.0,0.00011232,2]
[323586027,1714097450234,-513.77,0.00011232,2]
[323586028,1714097450244,-504.36995886,0.00011232,2]
[323586029,1714097450254,-557.57,0.00011232,2]
[323586030,1714097450264,-500.0,0.00011232,2]
[323586031,1714097450274,-500.0,0.00011232,2]
[323586032,1714097450284,-500.0,0.00011232,2]
[323586033,1714097450294,-500.0,0.00011232,2]
[323586034,1714097450304,-500.0,0.00011232,2]
[323586035,1714097450313,-500.0,0.00011232,2]
[323586036,1714097450324,-150.0,0.00011232,2]
[323586037,1714097450608,-500.0,0.00011232,2]
[323586038,1714097450633,-500.0,0.00011232,2]
[323586039,1714097450643,-500.0,0.00011232,2]
[323586040,1714097450653,-500.0,0.00011232,2]
[323586041,1714097450663,-500.0,0.00011232,2]
[323586042,1714097450673,-500.0,0.00011232,2]
[323586043,1714097450684,-583.87,0.00011232,2]
[323586044,1714097450694,-500.0,0.00011232,2]
[323586045,1714097450704,-500.0,0.00011232,2]
[323586046,1714097450713,-500.0,0.00011232,2]
[323586047,1714097450723,-537.95138035,0.00011232,2]
[323586048,1714097450732,-500.0,0.00011232,2]
[323586049,1714097450742,-586.1281166,0.00011232,2]
[323586050,1714097450752,-500.0,0.00011232,2]
[323586051,1714097450762,-500.0,0.00011232,2]
[323586052,1714097450772,-503.47504374,0.00011232,2]
[323586053,1714097450782,-500.0,0.00011232,2]
[323586054,1714097450792,-500.0,0.00011232,2]
[323586055,1714097450802,-500.0,0.00011232,2]
[323586056,1714097450812,-505.66583029,0.00011232,2]
[323586057,1714097450823,-500.0,0.00011232,2]
[323586058,1714097450833,-152.82009455,0.00011232,2]
[323586059,1714097450842,-500.0,0.00011232,2]
[323586060,1714097450853,-500.0,0.00011232,2]
[323586061,1714097450862,-500.0,0.00011232,2]
[323586062,1714097450871,-400.33109789,0.00011232,2]
[323586063,1714097450881,-508.44,0.00011232,2]
[323586064,1714097450891,-500.0,0.00011232,2]
[323586065,1714097450901,-654.32,0.00011232,2]
[323586066,1714097450910,-500.0,0.00011232,2]
[323586067,1714097450920,-500.0,0.00011232,2]
[323586068,1714097450930,-603.38,0.00011232,2]
[323586069,1714097450940,-500.0,0.00011232,2]
[323586070,1714097450950,-1095.27,0.00011232,2]
[323586071,1714097450960,-500.0,0.00011232,2]
[323586072,1714097450969,-500.0,0.00011232,2]
[323586073,1714097450978,-672.76,0.00011232,2]
[323586074,1714097450988,-500.0,0.00011232,2]
[323586075,1714097450997,-500.0,0.00011232,2]
[323586076,1714097451007,-500.0,0.00011232,2]
[323586077,1714097451016,-518.88425921,0.00011232,2]
[323586078,1714097451026,-500.0,0.00011232,2]
[323586079,1714097451036,-517.89664911,0.00011232,2]
[323586080,1714097451045,-500.0,0.00011232,2]
[323586081,1714097451055,-500.0,0.00011232,2]
[323586082,1714097451064,-500.0,0.00011232,2]
[323586083,1714097451074,-500.0,0.00011232,2]
[323586084,1714097451083,-500.0,0.00011232,2]
[323586085,1714097451092,-500.0,0.00011232,2]
[323586086,1714097451102,-500.0,0.00011232,2]
[323586087,1714097451112,-500.0,0.00011232,2]
[323586088,1714097451121,-500.0,0.00011232,2]
[323586089,1714097451131,-506.61,0.00011232,2]
[323586090,1714097451142,-717.5,0.00011232,2]
[323586091,1714097451151,-500.0,0.00011232,2]
[323586092,1714097451162,-500.0,0.00011232,2]
[323586093,1714097451172,-500.0,0.00011232,2]
[323586094,1714097451182,-500.0,0.00011232,2]
[323586095,1714097451192,-500.0,0.00011232,2]
[323586096,1714097451203,-500.0,0.00011232,2]
[323586097,1714097451212,-500.0,0.00011232,2]
[323586098,1714097451223,-509.08014288,0.00011232,2]
[323586099,1714097451233,-500.0,0.00011232,2]
[323586100,1714097451244,-505.69415357,0.00011232,2]
[323586101,1714097451254,-500.0,0.00011232,2]
[323586102,1714097451264,-500.0,0.00011232,2]
[323586103,1714097451274,-500.0,0.00011232,2]
[323586104,1714097451284,-500.0,0.00011232,2]
[323586105,1714097451295,-500.0,0.00011232,2]
[323586106,1714097451305,-368.24,0.00011232,2]
[323586107,1714097451315,-500.0,0.00011232,2]
[323586108,1714097451325,-500.0,0.00011232,2]
[323586109,1714097451334,-500.0,0.00011232,2]
[323586110,1714097451344,-500.0,0.00011232,2]
[323586111,1714097451354,-500.0,0.00011232,2]
[323586112,1714097451363,-500.0,0.00011232,2]
[323586113,1714097451373,-251.28632341,0.00011232,2]
[323586114,1714097451384,-500.0,0.00011232,2]
[323586115,1714097451394,-749.71,0.00011232,2]
[323586116,1714097451404,-500.0,0.00011232,2]
[323586117,1714097451413,-500.0,0.00011232,2]
[323586118,1714097451423,-500.0,0.00011232,2]
[323586119,1714097451433,-508.48426258,0.00011232,2]
[323586120,1714097451443,-1694.29,0.00011232,2]
[323586121,1714097451452,-502.72378925,0.00011232,2]
[323586122,1714097451462,-519.91023075,0.00011232,2]
[323586123,1714097451472,-604.45,0.00011232,2]
[323586124,1714097451483,-500.0,0.00011232,2]
[323586125,1714097451493,-600.33,0.00011232,2]
[323586126,1714097451504,-500.0,0.00011232,2]
[323586127,1714097451514,-521.27,0.00011232,2]
[323586128,1714097451524,-500.0,0.00011232,2]
[323586129,1714097451534,-500.0,0.00011232,2]
[323586130,1714097451544,-500.0,0.00011232,2]
[323586131,1714097451553,-1005.35,0.00011232,2]
[323586132,1714097451563,-500.0,0.00011232,2]
[323586133,1714097451572,-500.0,0.00011232,2]
[323586134,1714097451582,-576.62,0.00011232,2]
[323586135,1714097451591,-500.0,0.00011232,2]
[323586136,1714097451601,-500.0,0.00011232,2]
[323586137,1714097451611,-500.0,0.00011232,2]
[323586138,1714097451620,-888.62,0.00011232,2]
[323586139,1714097451630,-500.0,0.00011232,2]
[323586140,1714097451640,-500.0,0.00011232,2]
[323586141,1714097451650,-500.0,0.00011232,2]
[323586142,1714097451660,-500.0,0.00011232,2]
[323586143,1714097451670,-500.0,0.00011232,2]
[323586144,1714097451680,-680.83,0.00011232,2]
[323586145,1714097451692,-605.54,0.00011232,2]
[323586146,1714097451702,-500.0,0.00011232,2]
[323586147,1714097451711,-500.0,0.00011232,2]
[323586148,1714097451720,-500.0,0.00011232,2]
[323586149,1714097451731,-849.55,0.00011232,2]
[323586150,1714097451741,-500.0,0.00011232,2]
[323586151,1714097451751,-500.0,0.00011232,2]
[323586152,1714097451762,-500.0,0.00011232,2]
[323586153,1714097451772,-500.0,0.00011232,2]
[323586154,1714097451781,-500.0,0.00011232,2]
[323586155,1714097451791,-500.0,0.00011232,2]
[323586156,1714097451801,-500.0,0.00011232,2]
[323586157,1714097451811,-500.0,0.00011232,2]
[323586158,1714097451820,-577.42,0.00011232,2]
[323586159,1714097451830,-506.29933359,0.00011232,2]
[323586160,1714097451840,-500.0,0.00011232,2]
[323586161,1714097451851,-507.08743896,0.00011232,2]
[323586162,1714097451862,-500.0,0.00011232,2]
[323586163,1714097451872,-503.40802124,0.00011232,2]
[323586164,1714097451882,-646.0,0.00011232,2]
[323586165,1714097451894,-500.0,0.00011232,2]
[323586166,1714097451904,-504.64127667,0.00011232,2]
[323586167,1714097451914,-2464.94,0.00011232,2]
[323586168,1714097451926,-517.44339677,0.00011232,2]
[323586169,1714097451936,-500.0,0.00011232,2]
[323586170,1714097451946,-500.0,0.00011232,2]
[323586171,1714097451956,-500.0,0.00011232,2]
[323586172,1714097451967,-500.0,0.00011232,2]
[323586173,1714097451978,-500.0,0.00011232,2]
[323586174,1714097451988,-500.0,0.00011232,2]
[323586175,1714097451999,-500.0,0.00011232,2]
[323586176,1714097452011,-500.0,0.00011232,2]
[323586177,1714097452020,-500.0,0.00011232,2]
[323586178,1714097452031,-1424.97,0.00011232,2]
[323586179,1714097452042,-500.0,0.00011232,2]
[323586180,1714097452052,-206.96305384,0.00011232,2]
[323586181,1714097452061,-500.0,0.00011232,2]
[323586182,1714097452071,-500.0,0.00011232,2]
[323586183,1714097452080,-500.0,0.00011232,2]
[323586184,1714097452091,-534.1,0.00011232,2]
[323586185,1714097452102,-500.0,0.00011232,2]
[323586186,1714097452112,-500.0,0.00011232,2]
[323586187,1714097452123,-500.0,0.00011232,2]
[323586188,1714097452134,-7733.31,0.00011232,2]
[323586189,1714097452146,-500.0,0.00011232,2]
[323586190,1714097452156,-500.0,0.00011232,2]
[323586191,1714097452166,-500.0,0.00011232,2]
[323586192,1714097452176,-500.0,0.00011232,2]
[323586193,1714097452185,-500.0,0.00011232,2]
[323586194,1714097452195,-500.0,0.00011232,2]
[323586195,1714097452204,-3733.31,0.00011232,2]
[323586196,1714097452213,-500.0,0.00011232,2]
[323586197,1714097452223,-500.0,0.00011232,2]
[323586198,1714097452232,-500.0,0.00011232,2]
[323586199,1714097452242,-874.68,0.00011232,2]
[323586200,1714097452251,-1033.4,0.00011232,2]
[323586201,1714097452260,-500.0,0.00011232,2]
[323586202,1714097452269,-500.0,0.00011232,2]
[323586203,1714097452279,-500.0,0.00011232,2]
[323586204,1714097452289,-500.0,0.00011232,2]
[323586205,1714097452298,-2674.71,0.00011232,2]
[323586206,1714097452308,-500.0,0.00011232,2]
[323586207,1714097452317,-500.0,0.00011232,2]
[323586208,1714097452326,-500.0,0.00011232,2]
[323586209,1714097452336,-500.0,0.00011232,2]
[323586210,1714097452346,-500.0,0.00011232,2]
[323586211,1714097452355,-500.0,0.00011232,2]
[323586212,1714097452365,-500.0,0.00011232,2]
[323586213,1714097452374,-503.88766165,0.00011232,2]
[323586214,1714097452383,-500.0,0.00011232,2]
[323586215,1714097452395,-500.0,0.00011232,2]
[323586216,1714097452404,-188.09350946,0.00011232,2]
[323586217,1714097452413,-500.0,0.00011232,2]
[323586218,1714097452422,-500.0,0.00011232,2]